fUSD/lending_fUSD_20250123
["ID","MTS","AMOUNT","RATE_DAILY","PERIOD"]
[350077025,1737600667909,-500.0,0.00020821,2]
[350077026,1737600667918,-638.93,0.00020821,2]
[350077027,1737600667927,-500.0,0.00020821,2]
[350077028,1737600667937,-587.22,0.00020821,2]
[350077029,1737600667946,-500.0,0.00020821,2]
[350077030,1737600667955,-1434.82,0.00020821,2]
[350077031,1737600667964,-500.0,0.00020821,2]
[350077032,1737600667974,-500.0,0.00020821,2]
[350077033,1737600667983,-500.0,0.00020821,2]
[350077034,1737600667993,-649.87,0.00020821,2]
[350077035,1737600668002,-955.03,0.00020821,2]
[350077036,1737600668011,-656.2,0.00020821,2]
[350077037,1737600668021,-500.0,0.00020821,2]
[350077038,1737600668030,-500.0,0.00020821,2]
[350077039,1737600668039,-608.59,0.00020821,2]
[350077040,1737600668048,-500.0,0.00020821,2]
[350077041,1737600668057,-621.37,0.00020821,2]
[350077042,1737600668067,-644.73,0.00020821,2]
[350077043,1737600668076,-500.0,0.00020821,2]
[350077044,1737600668085,-1011.87,0.00020821,2]
[350077045,1737600668093,-633.79,0.00020821,2]
[350077046,1737600668102,-629.18,0.00020821,2]
[350077047,1737600668110,-500.61,0.00020821,2]
[350077048,1737600668119,-1323.99,0.00020821,2]
[350077049,1737600668129,-535.52,0.00020821,2]
[350077050,1737600668139,-500.0,0.00020821,2]
[350077051,1737600668149,-500.0,0.00020821,2]
[350077052,1737600668158,-1198.47,0.00020821,2]
[350077053,1737600668167,-520.23,0.00020821,2]
[350077054,1737600668177,-584.37,0.00020821,2]
[350077055,1737600668186,-500.0,0.00020821,2]
[350077056,1737600668196,-2097.84,0.00020821,2]
[350077057,1737600668209,-1011.49,0.00020821,2]
[350077058,1737600668218,-500.0,0.00020821,2]
[350077059,1737600668228,-805.84,0.00020821,2]
[350077060,1737600668237,-500.0,0.00020821,2]
[350077061,1737600668247,-889.12,0.00020821,2]
[350077062,1737600668531,-500.0,0.00020821,2]
[350077063,1737600668555,-889.54,0.00020821,2]
[350077064,1737600668570,-402.19561441,0.00020821,2]
[350077065,1737600668579,-613.95799974,0.00020821,2]
[350077066,1737600668588,-500.0,0.00020821,2]
[350077067,1737600668597,-1229.76,0.00020821,2]
[350077068,1737600668606,-500.0,0.00020821,2]
[350077069,1737600668616,-1077.12,0.00020821,2]
[350077070,1737600668626,-1925.86,0.00020821,2]
[350077071,1737600668635,-500.0,0.00020821,2]
[350077072,1737600668644,-2438.76,0.00020821,2]
[350077073,1737600668654,-609.65,0.00020821,2]
[350077074,1737600668663,-500.0,0.00020821,2]
[350077075,1737600668672,-500.0,0.00020821,2]
[350077076,1737600668682,-794.13,0.00020821,2]
[350077077,1737600668691,-725.8,0.00020821,2]
[350077078,1737600668700,-500.0,0.00020821,2]
[350077079,1737600668709,-500.0,0.00020821,2]
[350077080,1737600668719,-500.0,0.00020821,2]
[350077081,1737600668728,-500.0,0.00020821,2]
[350077082,1737600668738,-718.94,0.00020821,2]
[350077083,1737600668748,-500.0,0.00020821,2]
[350077084,1737600668757,-1450.85,0.00020821,2]
[350077085,1737600668766,-756.12,0.00020821,2]
[350077086,1737600668776,-1310.2,0.00020821,2]
[350077087,1737600668785,-621.41,0.00020821,2]
[350077088,1737600668794,-500.0,0.00020821,2]
[350077089,1737600668804,-500.0,0.00020821,2]
[350077090,1737600668814,-429.73005586,0.00020821,2]
[350077091,1737600668823,-500.0,0.00020821,2]
[350077092,1737600668833,-500.0,0.00020821,2]
[350077093,1737600668842,-1454.16,0.00020821,2]
[350077094,1737600668852,-500.0,0.00020821,2]
[350077095,1737600668862,-753.98,0.00020821,2]
[350077096,1737600668871,-500.0,0.00020821,2]
[350077097,1737600668880,-1414.07,0.00020821,2]
[350077098,1737600668889,-1244.98,0.00020821,2]
[350077099,1737600668899,-500.0,0.00020821,2]
[350077100,1737600668909,-500.0,0.00020821,2]
[350077101,1737600668919,-1271.07,0.00020821,2]
[350077102,1737600668928,-500.0,0.00020821,2]
[350077103,1737600668938,-500.0,0.00020821,2]
[350077104,1737600668947,-973.72,0.00020821,2]
[350077105,1737600668957,-500.0,0.00020821,2]
[350077106,1737600668967,-648.5,0.00020821,2]
[350077107,1737600668976,-500.0,0.00020821,2]
[350077108,1737600668984,-1248.6,0.00020821,2]
[350077109,1737600668994,-500.0,0.00020821,2]
[350077110,1737600669004,-1247.63,0.00020821,2]
[350077111,1737600669014,-625.8,0.00020821,2]
[350077112,1737600669023,-500.0,0.00020821,2]
[350077113,1737600669033,-464.29702754,0.00020821,2]
[350077114,1737600669041,-834.39,0.00020821,2]
[350077115,1737600669050,-883.76,0.00020821,2]
[350077116,1737600669060,-569.9,0.00020821,2]
[350077117,1737600669069,-500.0,0.00020821,2]
[350077118,1737600669078,-812.1,0.00020821,2]
[350077119,1737600669087,-1627.57,0.00020821,2]
[350077120,1737600669096,-1399.38,0.00020821,2]
[350077121,1737600669105,-1530.0,0.00020821,2]
[350077122,1737600669114,-500.0,0.00020821,2]
[350077123,1737600669123,-484.35601683,0.00020821,2]
[350077124,1737600669132,-739.34,0.00020821,2]
[350077125,1737600669141,-605.41,0.00020821,2]
[350077126,1737600669150,-644.5722696,0.00020821,2]
[350077127,1737600669160,-614.22,0.00020821,2]
[350077128,1737600669169,-500.0,0.00020821,2]
[350077129,1737600669177,-552.79,0.00020821,2]
[350077130,1737600669186,-500.0,0.00020821,2]
[350077131,1737600669195,-500.0,0.00020821,2]
[350077132,1737600669207,-500.0,0.00020821,2]
[350077133,1737600669223,-1872.77,0.00020821,2]
[350077134,1737600669233,-500.0,0.00020821,2]
[350077135,1737600669242,-534.05,0.00020821,2]
[350077136,1737600669252,-500.0,0.00020821,2]
[350077137,1737600669261,-694.8,0.00020821,2]
[350077138,1737600669270,-500.0,0.00020821,2]
[350077139,1737600669279,-500.0,0.00020821,2]
[350077140,1737600669289,-642.3205739,0.00020821,2]
[350077141,1737600669298,-505.5,0.00020821,2]
[350077142,1737600669307,-500.0,0.00020821,2]
[350077143,1737600669316,-500.11,0.00020821,2]
[350077144,1737600669325,-622.49,0.00020821,2]
[350077145,1737600669334,-1610.93,0.00020821,2]
[350077146,1737600669343,-500.0,0.00020821,2]
[350077147,1737600669352,-500.0,0.00020821,2]
[350077148,1737600669361,-812.44,0.00020821,2]
[350077149,1737600669371,-821.1,0.00020821,2]
[350077150,1737600669380,-500.0,0.00020821,2]
[350077151,1737600669390,-559.33,0.00020821,2]
[350077152,1737600669399,-758.07,0.00020821,2]
[350077153,1737600669408,-500.0,0.00020821,2]
[350077154,1737600669417,-500.0,0.00020821,2]
[350077155,1737600669426,-1332.08,0.00020821,2]
[350077156,1737600669435,-1264.83,0.00020821,2]
[350077157,1737600669445,-500.0,0.00020821,2]
[350077158,1737600669453,-500.0,0.00020821,2]
[350077159,1737600669462,-1770.11,0.00020821,2]
[350077160,1737600669471,-815.21,0.00020821,2]
[350077161,1737600669480,-500.0,0.00020821,2]
[350077162,1737600669492,-521.55,0.00020821,2]
[350077163,1737600669501,-200.0,0.00020831,2]
[350077164,1737600669510,-200.0,0.00020836,2]
[350077165,1737600669519,-461.01052355,0.00020843,2]
[350077166,1737600669527,-712.71579404,0.00020866,2]
[350077167,1737600669536,-461.01052355,0.00020876,2]
[350077168,1737600669545,-461.01052355,0.0002088,2]
[350077169,1737600669553,-461.01052355,0.0002089,2]
[350077170,1737600669562,-200.0,0.00020895,2]
[350077171,1737600669571,-160.98,0.000209,2]
[350077172,1737600669579,-200.0,0.00020901,2]
[350077173,1737600669588,-200.0,0.00020919,2]
[350077174,1737600669597,-200.0,0.00020925,2]
[350077175,1737600669606,-712.71579404,0.00020934,2]
[350077176,1737600669615,-461.01052355,0.0002094,2]
[350077177,1737600669624,-30268.19865988,0.00020959,2]
[350077178,1737600669633,-3078.85303435,0.00020995,2]
[350077179,1737600669642,-712.71579404,0.00021003,2]
[350077180,1737600669652,-712.71579404,0.00021072,2]
[350077181,1737600669661,-248.93727685,0.00021094,2]
[350077182,1737600669672,-500.0,0.00021095,14]
[350077183,1737600669681,-260.41033135,0.00021095,2]
[350077184,1737600669690,-500.0,0.00021095,2]
[350077185,1737600669699,-527.19798043,0.00021095,2]
[350077186,1737600669709,-500.0,0.00021095,2]
[350077187,1737600669719,-359.94355148,0.00021095,2]
[350077188,1737600669728,-500.0,0.00021095,2]
[350077189,1737600669742,-500.0,0.00021095,2]
[350077190,1737600669752,-500.0,0.00021095,2]
[350077191,1737600669761,-500.0,0.00021095,2]
[350077192,1737600669772,-620.30842684,0.00021095,2]
[350077193,1737600669782,-500.0,0.00021095,2]
[350077194,1737600669791,-500.0,0.00021095,2]
[350077195,1737600669800,-385.707963,0.00021095,2]
[350077196,1737600669809,-436.582676,0.00021095,2]
[350077197,1737600669819,-581.81168771,0.00021095,2]
[350077198,1737600669828,-500.0,0.00021095,2]
[350077199,1737600669838,-500.0,0.00021095,2]
[350077200,1737600669847,-500.0,0.00021095,2]
[350077201,1737600669856,-500.0,0.00021095,2]
[350077202,1737600669866,-500.0,0.00021095,2]
[350077203,1737600669875,-500.0,0.00021095,2]
[350077204,1737600669884,-500.0,0.00021095,2]
[350077205,1737600669894,-519.65198607,0.00021095,2]
[350077206,1737600669903,-560.52,0.00021095,2]
[350077207,1737600669912,-500.0,0.00021095,2]
[350077208,1737600669921,-500.0,0.00021095,2]
[350077209,1737600669931,-500.0,0.00021095,2]
[350077210,1737600669940,-500.0,0.00021095,2]
[350077211,1737600669949,-500.0,0.00021095,2]
[350077212,1737600669959,-500.0,0.00021095,2]
[350077213,1737600669967,-722.11,0.00021095,2]
[350077214,1737600669977,-500.0,0.00021095,2]
[350077215,1737600669988,-383.41162585,0.00021095,2]
[350077216,1737600669999,-206.14218092,0.00021095,2]
[350077217,1737600670009,-500.0,0.00021095,2]
[350077218,1737600670019,-500.0,0.00021095,2]
[350077219,1737600670028,-500.0,0.00021095,2]
[350077220,1737600670038,-500.0,0.00021095,2]
[350077221,1737600670048,-500.0,0.00021095,2]
[350077222,1737600670057,-500.0,0.00021095,2]
[350077223,1737600670066,-500.0,0.00021095,2]
[350077224,1737600670075,-500.0,0.00021095,2]
[350077225,1737600670084,-516.29679739,0.00021095,2]
[350077226,1737600670093,-500.0,0.00021095,2]
[350077227,1737600670102,-500.0,0.00021095,2]
[350077228,1737600670111,-519.1,0.00021095,2]
[350077229,1737600670121,-500.0,0.00021095,2]
[350077230,1737600670130,-500.0,0.00021095,2]
[350077231,1737600670139,-500.0,0.00021095,2]
[350077232,1737600670148,-500.0,0.00021095,2]
[350077233,1737600670158,-500.0,0.00021095,2]
[350077234,1737600670167,-500.0,0.00021095,2]
[350077235,1737600670176,-527.19,0.00021095,2]
[350077236,1737600670185,-500.0,0.00021095,2]
[350077237,1737600670194,-500.0,0.00021095,2]
[350077238,1737600670203,-500.0,0.00021095,2]
[350077239,1737600670216,-516.23229215,0.00021095,2]
[350077240,1737600670226,-500.0,0.00021095,2]
[350077241,1737600670237,-500.0,0.00021095,2]
[350077242,1737600670247,-500.0,0.00021095,2]
[350077243,1737600670258,-500.0,0.00021095,2]
[350077244,1737600670267,-500.0,0.00021095,2]
[350077245,1737600670277,-500.0,0.00021095,2]
[350077246,1737600670286,-500.0,0.00021095,2]
[350077247,1737600670296,-500.0,0.00021095,2]
[350077248,1737600670306,-533.01,0.00021095,2]
[350077249,1737600670314,-500.0,0.00021095,2]
[350077250,1737600670324,-500.0,0.00021095,2]
[350077251,1737600670333,-500.0,0.00021095,2]
[350077252,1737600670343,-500.0,0.00021095,2]
[350077253,1737600670352,-500.0,0.00021095,2]
[350077254,1737600670362,-500.0,0.00021095,2]
[350077255,1737600670371,-500.0,0.00021095,2]
[350077256,1737600670382,-577.09,0.00021095,2]
[350077257,1737600670391,-491.14343016,0.00021095,2]
[350077258,1737600670400,-503.7,0.00021095,2]
[350077259,1737600670409,-500.0,0.00021095,2]
[350077260,1737600670418,-500.0,0.00021095,2]
[350077261,1737600670426,-531.35,0.00021095,2]
[350077262,1737600670435,-500.0,0.00021095,2]
[350077263,1737600670444,-659.11,0.00021095,2]
[350077264,1737600670453,-500.0,0.00021095,2]
[350077265,1737600670462,-500.0,0.00021095,2]
[350077266,1737600670471,-500.0,0.00021095,2]
[350077267,1737600670480,-500.0,0.00021095,2]
[350077268,1737600670493,-500.0,0.00021095,2]
[350077269,1737600670502,-500.0,0.00021095,2]
[350077270,1737600670512,-500.0,0.00021095,2]
[350077271,1737600670521,-586.25,0.00021095,2]
[350077272,1737600670532,-500.0,0.00021095,2]
[350077273,1737600670543,-327.62909631,0.00021095,2]
[350077274,1737600670553,-500.0,0.00021095,2]
[350077275,1737600670562,-500.0,0.00021095,2]
[350077276,1737600670571,-500.0,0.00021095,2]
[350077277,1737600670581,-500.0,0.00021095,2]
[350077278,1737600670591,-500.0,0.00021095,2]
[350077279,1737600670600,-500.0,0.00021095,2]
[350077280,1737600670610,-638.93,0.00021095,2]
[350077281,1737600670619,-500.0,0.00021095,2]
[350077282,1737600670628,-587.22,0.00021095,2]
[350077283,1737600670638,-500.0,0.00021095,2]
[350077284,1737600670647,-1434.82,0.00021095,2]
[350077285,1737600670657,-500.0,0.00021095,2]
[350077286,1737600670666,-500.0,0.00021095,2]
[350077287,1737600670676,-500.0,0.00021095,2]
[350077288,1737600670685,-649.87,0.00021095,2]
[350077289,1737600670695,-955.03,0.00021095,2]
[350077290,1737600670704,-656.2,0.00021095,2]
[350077291,1737600670712,-500.0,0.00021095,2]
[350077292,1737600670721,-500.0,0.00021095,2]
[350077293,1737600670730,-608.59,0.00021095,2]
[350077294,1737600670744,-500.0,0.00021095,2]
[350077295,1737600670753,-621.37,0.00021095,2]
[350077296,1737600670763,-644.73,0.00021095,2]
[350077297,1737600670772,-500.0,0.00021095,2]
[350077298,1737600670781,-1011.87,0.00021095,2]
[350077299,1737600670790,-633.79,0.00021095,2]
[350077300,1737600670800,-629.18,0.00021095,2]
[350077301,1737600670809,-500.61,0.00021095,2]
[350077302,1737600670819,-1323.99,0.00021095,2]
[350077303,1737600670828,-535.52,0.00021095,2]
[350077304,1737600670837,-500.0,0.00021095,2]
[350077305,1737600670848,-482.13,0.00021095,2]
[350077306,1737600670858,-1198.47,0.00021095,2]
[350077307,1737600670868,-520.23,0.00021095,2]
[350077308,1737600670877,-584.37,0.00021095,2]
[350077309,1737600670887,-500.0,0.00021095,2]
[350077310,1737600670897,-2097.84,0.00021095,2]
[350077311,1737600670907,-1011.49,0.00021095,2]
[350077312,1737600670916,-805.84,0.00021095,2]
[350077313,1737600670925,-500.0,0.00021095,2]
[350077314,1737600670934,-889.12,0.00021095,2]
[350077315,1737600670943,-500.0,0.00021095,2]
[350077316,1737600670952,-889.54,0.00021095,2]
[350077317,1737600670961,-1229.76,0.00021095,2]
[350077318,1737600670970,-500.0,0.00021095,2]
[350077319,1737600670980,-1077.12,0.00021095,2]
[350077320,1737600670991,-1925.86,0.00021095,2]
[350077321,1737600671001,-500.0,0.00021095,2]
[350077322,1737600671010,-2438.76,0.00021095,2]
[350077323,1737600671019,-609.65,0.00021095,2]
[350077324,1737600671029,-500.0,0.00021095,2]
[350077325,1737600671039,-500.0,0.00021095,2]
[350077326,1737600671048,-794.13,0.00021095,2]
[350077327,1737600671058,-725.8,0.00021095,2]
[350077328,1737600671067,-500.0,0.00021095,2]
[350077329,1737600671077,-500.0,0.00021095,2]
[350077330,1737600671087,-500.0,0.00021095,2]
[350077331,1737600671096,-435.24050529,0.00021095,2]
[350077332,1737600671105,-718.94,0.00021095,2]
[350077333,1737600671114,-500.0,0.00021095,2]
[350077334,1737600671123,-1450.85,0.00021095,2]
[350077335,1737600671133,-756.12,0.00021095,2]
[350077336,1737600671142,-1310.2,0.00021095,2]
[350077337,1737600671150,-621.41,0.00021095,2]
[350077338,1737600671159,-500.0,0.00021095,2]
[350077339,1737600671169,-500.0,0.00021095,2]
[350077340,1737600671178,-500.0,0.00021095,2]
[350077341,1737600671187,-500.0,0.00021095,2]
[350077342,1737600671196,-1454.16,0.00021095,2]
[350077343,1737600671206,-500.0,0.00021095,2]
[350077344,1737600671218,-753.98,0.00021095,2]
[350077345,1737600671227,-1414.07,0.00021095,2]
[350077346,1737600671237,-1244.98,0.00021095,2]
[350077347,1737600671247,-500.0,0.00021095,2]
[350077348,1737600671256,-500.0,0.00021095,2]
[350077349,1737600671266,-1271.07,0.00021095,2]
[350077350,1737600671276,-526.68665708,0.00021095,2]
[350077351,1737600671288,-500.0,0.00021095,2]
[350077352,1737600671298,-973.72,0.00021095,2]
[350077353,1737600671307,-500.0,0.00021095,2]
[350077354,1737600671316,-500.0,0.00021095,2]
[350077355,1737600671325,-648.5,0.00021095,2]
[350077356,1737600671335,-1248.6,0.00021095,2]
[350077357,1737600671344,-500.0,0.00021095,2]
[350077358,1737600671353,-1247.63,0.00021095,2]
[350077359,1737600671362,-625.8,0.00021095,2]
[350077360,1737600671372,-500.0,0.00021095,2]
[350077361,1737600671381,-834.39,0.00021095,2]
[350077362,1737600671391,-883.76,0.00021095,2]
[350077363,1737600671400,-569.9,0.00021095,2]
[350077364,1737600671409,-500.0,0.00021095,2]
[350077365,1737600671418,-812.1,0.00021095,2]
[350077366,1737600671428,-1627.57,0.00021095,2]
[350077367,1737600671438,-1399.38,0.00021095,2]
[350077368,1737600671448,-1530.0,0.00021095,2]
[350077369,1737600671457,-500.0,0.00021095,2]
[350077370,1737600671467,-739.34,0.00021095,2]
[350077371,1737600671478,-605.41,0.00021095,2]
[350077372,1737600671489,-614.22,0.00021095,2]
[350077373,1737600671499,-500.0,0.00021095,2]
[350077374,1737600671508,-552.79,0.00021095,2]
[350077375,1737600671518,-500.0,0.00021095,2]
[350077376,1737600671528,-500.0,0.00021095,2]
[350077377,1737600671538,-1872.77,0.00021095,2]
[350077378,1737600671548,-500.0,0.00021095,2]
[350077379,1737600671557,-534.05,0.00021095,2]
[350077380,1737600671566,-500.0,0.00021095,2]
[350077381,1737600671575,-694.8,0.00021095,2]
[350077382,1737600671584,-500.0,0.00021095,2]
[350077383,1737600671593,-500.0,0.00021095,2]
[350077384,1737600671602,-505.5,0.00021095,2]
[350077385,1737600671611,-610.38412783,0.00021095,2]
[350077386,1737600671619,-500.11,0.00021095,2]
[350077387,1737600671628,-622.49,0.00021095,2]
[350077388,1737600671637,-1610.93,0.00021095,2]
[350077389,1737600671647,-500.0,0.00021095,2]
[350077390,1737600671656,-500.0,0.00021095,2]
[350077391,1737600671789,-812.44,0.00021095,2]
[350077392,1737600671803,-821.1,0.00021095,2]
[350077393,1737600671813,-500.0,0.00021095,2]
[350077394,1737600671823,-559.33,0.00021095,2]
[350077395,1737600671833,-758.07,0.00021095,2]
[350077396,1737600671843,-500.0,0.00021095,2]
[350077397,1737600671854,-570.64720533,0.00021095,2]
[350077398,1737600671864,-1332.08,0.00021095,2]
[350077399,1737600671874,-1264.83,0.00021095,2]
[350077400,1737600671883,-500.0,0.00021095,2]
[350077401,1737600671892,-500.0,0.00021095,2]
[350077402,1737600671902,-1770.11,0.00021095,2]
[350077403,1737600671911,-815.21,0.00021095,2]
[350077404,1737600671921,-500.0,0.00021095,2]
[350077405,1737600671930,-521.55,0.00021095,2]
[350077406,1737600671940,-712.71579404,0.00021141,2]
[350077407,1737600671950,-297.14,0.00021181,2]
[350077408,1737600671960,-712.71579404,0.0002121,2]
[350077409,1737600671970,-253.56,0.00021273,2]
[350077410,1737600671979,-30268.19865988,0.00021273,2]
[350077411,1737600671991,-712.71579404,0.00021279,2]
[350077412,1737600672001,-712.71579404,0.00021348,2]
[350077413,1737600672011,-350.0,0.00021368,2]
[350077414,1737600672022,-500.0,0.00021369,14]
[350077415,1737600672032,-500.0,0.00021369,2]
[350077416,1737600672041,-500.0,0.00021369,2]
[350077417,1737600672050,-620.30801035,0.00021369,2]
[350077418,1737600672059,-547.96539019,0.00021369,2]
[350077419,1737600672068,-337.94180138,0.00021369,2]
[350077420,1737600672077,-385.707963,0.00021369,2]
[350077421,1737600672086,-436.582676,0.00021369,2]
[350077422,1737600672094,-500.0,0.00021369,2]
[350077423,1737600672104,-500.0,0.00021369,2]
[350077424,1737600672112,-637.57222417,0.00021369,2]
[350077425,1737600672121,-500.0,0.00021369,2]
[350077426,1737600672130,-500.0,0.00021369,2]
[350077427,1737600672139,-500.0,0.00021369,2]
[350077428,1737600672148,-500.0,0.00021369,2]
[350077429,1737600672157,-560.52,0.00021369,2]
[350077430,1737600672166,-500.0,0.00021369,2]
[350077431,1737600672175,-500.0,0.00021369,2]
[350077432,1737600672184,-500.0,0.00021369,2]
[350077433,1737600672193,-500.0,0.00021369,2]
[350077434,1737600672203,-500.0,0.00021369,2]
[350077435,1737600672214,-500.0,0.00021369,2]
[350077436,1737600672224,-722.11,0.00021369,2]
[350077437,1737600672232,-500.0,0.00021369,2]
[350077438,1737600672243,-500.0,0.00021369,2]
[350077439,1737600672254,-500.0,0.00021369,2]
[350077440,1737600672263,-500.0,0.00021369,2]
[350077441,1737600672272,-500.0,0.00021369,2]
[350077442,1737600672282,-500.0,0.00021369,2]
[350077443,1737600672291,-500.0,0.00021369,2]
[350077444,1737600672301,-500.0,0.00021369,2]
[350077445,1737600672310,-500.0,0.00021369,2]
[350077446,1737600672320,-500.0,0.00021369,2]
[350077447,1737600672329,-515.51174931,0.00021369,2]
[350077448,1737600672339,-519.1,0.00021369,2]
[350077449,1737600672348,-500.0,0.00021369,2]
[350077450,1737600672358,-500.0,0.00021369,2]
[350077451,1737600672367,-500.0,0.00021369,2]
[350077452,1737600672377,-500.0,0.00021369,2]
[350077453,1737600672387,-500.0,0.00021369,2]
[350077454,1737600672397,-500.0,0.00021369,2]
[350077455,1737600672406,-527.19,0.00021369,2]
[350077456,1737600672415,-500.0,0.00021369,2]
[350077457,1737600672424,-500.0,0.00021369,2]
[350077458,1737600672434,-500.0,0.00021369,2]
[350077459,1737600672444,-500.0,0.00021369,2]
[350077460,1737600672453,-500.0,0.00021369,2]
[350077461,1737600672463,-500.0,0.00021369,2]
[350077462,1737600672472,-500.0,0.00021369,2]
[350077463,1737600672481,-500.0,0.00021369,2]
[350077464,1737600672493,-500.0,0.00021369,2]
[350077465,1737600672502,-500.0,0.00021369,2]
[350077466,1737600672512,-500.0,0.00021369,2]
[350077467,1737600672522,-533.01,0.00021369,2]
[350077468,1737600672531,-500.0,0.00021369,2]
[350077469,1737600672541,-500.0,0.00021369,2]
[350077470,1737600672551,-500.0,0.00021369,2]
[350077471,1737600672561,-500.0,0.00021369,2]
[350077472,1737600672570,-443.51931436,0.00021369,2]
[350077473,1737600672579,-500.0,0.00021369,2]
[350077474,1737600672589,-500.0,0.00021369,2]
[350077475,1737600672598,-577.09,0.00021369,2]
[350077476,1737600672608,-503.7,0.00021369,2]
[350077477,1737600672616,-500.0,0.00021369,2]
[350077478,1737600672625,-531.35,0.00021369,2]
[350077479,1737600672634,-609.44691295,0.00021369,2]
[350077480,1737600672643,-659.11,0.00021369,2]
[350077481,1737600672653,-500.0,0.00021369,2]
[350077482,1737600672662,-500.0,0.00021369,2]
[350077483,1737600672671,-500.0,0.00021369,2]
[350077484,1737600672680,-500.0,0.00021369,2]
[350077485,1737600672689,-500.0,0.00021369,2]
[350077486,1737600672698,-206.86354625,0.00021369,2]
[350077487,1737600672921,-379.38645375,0.00021369,2]
[350077488,1737600672931,-475.17103944,0.00021369,2]
[350077489,1737600672944,-24.82896056,0.00021369,2]
[350077490,1737600672953,-500.0,0.00021369,2]
[350077491,1737600672963,-500.0,0.00021369,2]
[350077492,1737600672972,-500.0,0.00021369,2]
[350077493,1737600672982,-500.0,0.00021369,2]
[350077494,1737600672992,-500.0,0.00021369,2]
[350077495,1737600673002,-638.93,0.00021369,2]
[350077496,1737600673011,-500.0,0.00021369,2]
[350077497,1737600673021,-587.22,0.00021369,2]
[350077498,1737600673030,-344.13758988,0.00021369,2]
[350077499,1737600673040,-1434.82,0.00021369,2]
[350077500,1737600673049,-500.0,0.00021369,2]
[350077501,1737600673059,-500.0,0.00021369,2]
[350077502,1737600673068,-649.87,0.00021369,2]
[350077503,1737600673078,-955.03,0.00021369,2]
[350077504,1737600673087,-656.2,0.00021369,2]
[350077505,1737600673097,-500.0,0.00021369,2]
[350077506,1737600673106,-558.32,0.00021369,2]
[350077507,1737600673115,-608.59,0.00021369,2]
[350077508,1737600673126,-500.0,0.00021369,2]
[350077509,1737600673135,-621.37,0.00021369,2]
[350077510,1737600673145,-644.73,0.00021369,2]
[350077511,1737600673154,-500.0,0.00021369,2]
[350077512,1737600673164,-633.79,0.00021369,2]
[350077513,1737600673174,-1011.87,0.00021369,2]
[350077514,1737600673184,-629.18,0.00021369,2]
[350077515,1737600673193,-500.61,0.00021369,2]
[350077516,1737600673202,-1323.99,0.00021369,2]
[350077517,1737600673214,-535.52,0.00021369,2]
[350077518,1737600673224,-500.0,0.00021369,2]
[350077519,1737600673233,-1198.47,0.00021369,2]
[350077520,1737600673243,-520.23,0.00021369,2]
[350077521,1737600673253,-584.37,0.00021369,2]
[350077522,1737600673262,-500.0,0.00021369,2]
[350077523,1737600673272,-2097.84,0.00021369,2]
[350077524,1737600673281,-1011.49,0.00021369,2]